bitfinex-derivatives/quotes_BNBF0:USTF0_20250630
["timestamp","ask_amount","ask_price","bid_price","bid_amount"]
[1751242619893,3.80934632,656.79,656.34,1.115]
[1751242621194,4.07407972,656.82,656.34,1.115]
[1751242621593,3.80934632,656.79,656.34,1.115]
[1751242622694,3.80934632,656.77,656.34,1.115]
[1751242623199,0.2647334,656.82,656.34,1.115]
[1751242629506,0.2647334,656.82,656.33,6.041]
[1751242633110,0.2647334,656.82,656.34,1.115]
[1751242645014,0.2647334,656.82,656.33,6.041]
[1751242649021,0.2647334,656.82,656.34,1.115]
[1751242656130,0.2647334,656.82,656.33,3.171]
[1751242656532,3.80934632,656.8,656.33,3.171]
[1751242657539,3.80934632,656.74,656.33,3.171]
[1751242658030,3.80934632,656.72,656.33,3.171]
[1751242658628,3.80934632,656.72,656.33,1.2644795]
[1751242658829,3.80934632,656.72,656.33,0.31121925]
[1751242659233,3.80934632,656.66,656.33,0.31121925]
[1751242660132,0.2647334,656.82,656.33,0.31121925]
[1751242661839,3.80802929,656.7,656.33,0.31121925]
[1751242662439,3.80802929,656.66,656.33,0.31121925]
[1751242662639,3.80802929,656.66,656.34,2.729]
[1751242662939,3.80802929,656.64,656.34,2.729]
[1751242663538,3.80802929,656.66,656.34,2.729]
[1751242666236,3.80802929,656.66,656.34,0.8224795]
[1751242666436,3.80802929,656.67,656.34,0.8224795]
[1751242668043,0.2647334,656.82,656.34,0.8224795]
[1751242684755,0.2647334,656.82,656.33,2.606]
[1751242686361,3.80802929,656.8,656.33,2.606]
[1751242687957,0.2647334,656.82,656.33,2.606]
[1751242688157,0.2647334,656.82,656.22,2.848]
[1751242691464,0.2647334,656.82,656.23,2.121]
[1751242696267,3.80802929,656.74,656.23,2.121]
[1751242697768,3.80802929,656.74,656.23,0.214334]
[1751242698065,3.80802929,656.62,656.23,0.214334]
[1751242698971,3.80802929,656.65,656.23,0.214334]
[1751242699668,3.80802929,656.66,656.23,0.214334]
[1751242702576,3.80802929,656.67,656.23,0.214334]
[1751242703173,3.80802929,656.71,656.23,0.214334]
[1751242703480,3.80802929,656.71,656.23,2.661334]
[1751242705179,3.80802929,656.72,656.23,2.661334]
[1751242705779,3.80802929,656.73,656.23,2.661334]
[1751242708280,3.80802929,656.74,656.23,2.661334]
[1751242708881,3.80802929,656.71,656.23,2.661334]
[1751242709380,3.80802929,656.7,656.23,2.661334]
[1751242710483,3.80802929,656.74,656.23,2.661334]
[1751242710977,3.80802929,656.75,656.23,2.661334]
[1751242713081,3.80802929,656.71,656.23,2.661334]
[1751242714185,3.80802929,656.72,656.23,2.661334]
[1751242715785,3.80802929,656.68,656.23,2.661334]
[1751242716186,3.80802929,656.67,656.23,2.661334]
[1751242717882,3.80802929,656.66,656.23,2.661334]
[1751242720187,3.80802929,656.66,656.23,0.75468836]
[1751242720388,3.80802929,656.6,656.23,0.75468836]
[1751242720585,3.80802929,656.6,656.19,2.821]
[1751242720783,3.80802929,656.58,656.19,2.821]
[1751242722988,5.33124101,656.79,656.19,2.821]
[1751242723887,0.2647334,656.82,656.19,2.821]
[1751242726393,0.2647334,656.82,656.2,1.011]
[1751242726688,0.2647334,656.82,656.21,3.228]
[1751242726891,0.2647334,656.82,656.21,3.908]
[1751242727092,0.2647334,656.82,656.22,3.322]
[1751242749104,0.2647334,656.82,656.21,0.68]
[1751242752310,0.2647334,656.82,656.22,3.024]
[1751242752515,0.2647334,656.82,656.22,4.035]
[1751242755715,0.2647334,656.82,656.23,0.68]
[1751242755915,0.2647334,656.82,656.23,4.489]
[1751242767618,0.2647334,656.82,656.23,3.809]
[1751242769024,0.2647334,656.82,656.24,3.715]
[1751242770127,0.2647334,656.82,656.25,2.563]
[1751242770827,0.2647334,656.82,656.26,0.68]
[1751242773625,0.2647334,656.82,656.27,1.011]
[1751242780936,3.80802929,657.06,656.27,1.011]
[1751242781233,0.26513882,656.69,656.27,1.011]
[1751242781436,3.80802929,657.05,656.27,1.011]
[1751242781837,0.26513983,656.59,656.27,1.011]
[1751242782038,3.80802929,657.03,656.27,1.011]
[1751242782242,3.80802929,657.02,656.27,1.011]
[1751242782935,3.80802929,657.01,656.27,1.011]
[1751242783338,0.26515498,656.84,656.27,1.011]
[1751242786539,0.26515498,656.84,656.28,3.731]
[1751242789343,0.26515498,656.84,656.29,2.843]
[1751242789938,0.26515498,656.84,656.3,3.375]
[1751242798452,0.26515498,656.84,656.31,0.68]
[1751242800349,0.26515498,656.84,656.32,1.011]
[1751242801351,0.26515498,656.84,656.33,3.982]
[1751242809659,0.26515498,656.84,656.34,3.809]
[1751242810364,0.26515498,656.84,656.35,2.48]
[1751242811764,0.26515498,656.84,656.36,2.725]
[1751242812263,0.26515498,656.84,656.37,2.956]
[1751242817168,0.26515498,656.84,656.38,1.011]
[1751242817569,0.26515498,656.84,656.39,0.68]
[1751242824972,0.26515498,656.84,656.4,3.097]
[1751242828371,0.26515498,656.84,656.41,3.331]
[1751242832773,0.26515498,656.84,656.42,0.68]
[1751242835176,0.26515498,656.84,656.43,3.804]
[1751242840480,0.26515498,656.84,656.44,1.011]
[1751242844682,0.26515498,656.84,656.45,3.245]
[1751242849686,0.26515498,656.84,656.46,3.042]
[1751242874798,0.26515498,656.84,656.45,3.245]
[1751242880703,0.26515498,656.84,656.46,3.654]
[1751242883309,0.26515498,656.84,656.47,3.309]
[1751242906324,0.26515498,656.84,656.46,3.654]
[1751242909226,0.26515498,656.84,656.47,3.174]
[1751242912531,0.26515498,656.84,656.48,0.68]
[1751242915534,0.26515498,656.84,656.49,2.699]
[1751242917231,0.26515498,656.84,656.5,3.796]
[1751242917432,0.26515498,656.84,656.5,7.271]
[1751242920533,0.26515498,656.84,656.5,8.282]
[1751242926640,0.26515498,656.84,656.51,3.17]
[1751242930842,0.26515498,656.84,656.52,3.557]
[1751242949964,0.26515498,656.84,656.53,2.797]
[1751242978887,0.26515498,656.84,656.51,3.17]
[1751242983290,3.80802929,657.09,656.51,3.17]
[1751242983589,0.26509741,656.76,656.51,3.17]
[1751242983792,3.80802929,657.09,656.51,3.17]
[1751242983990,0.26509943,656.7,656.51,3.17]
[1751242984192,3.80802929,656.98,656.51,3.17]
[1751242984493,0.26511054,656.66,656.51,3.17]
[1751242984692,3.80802929,656.98,656.51,3.17]
[1751242984987,0.26511054,656.63,656.51,3.17]
[1751242985189,3.80802929,656.97,656.51,3.17]
[1751242985392,3.80802929,657.09,656.51,3.17]
[1751242985591,3.80802929,657.09,656.43,0.888]
[1751242985786,3.80802929,657.09,656.5,1.516]
[1751242986489,0.26510044,656.95,656.5,1.516]
[1751242989500,0.26510044,656.95,656.51,3.856]
[1751242990300,0.26510044,656.95,656.52,3.338]
[1751243002405,0.26510044,656.95,656.52,1.43227969]
[1751243002605,3.80802929,656.92,656.52,1.43227969]
[1751243005307,3.80802929,656.94,656.52,1.43227969]
[1751243008314,0.26510044,656.95,656.52,1.43227969]
[1751243011012,0.26510044,656.95,656.53,2.545]
[1751243015020,0.26510044,656.95,656.54,2.679]
[1751243019421,0.26510044,656.95,656.55,3.531]
[1751243021224,0.26510044,656.95,656.56,0.887]
[1751243024324,0.26510044,656.95,656.57,1.516]
[1751243025522,0.26510044,656.95,656.58,2.65]
[1751243038636,0.26510044,656.95,656.59,3.158]
[1751243040342,0.26510044,656.95,656.6,4.031]
[1751243043243,0.26510044,656.95,656.61,0.887]
[1751243050548,0.26510044,656.95,656.62,1.515]
[1751243054055,0.26510044,656.95,656.63,2.735]
[1751243058958,0.26510044,656.95,656.64,2.818]
[1751243059661,0.26510044,656.95,656.65,0.887]
[1751243063960,0.26510044,656.95,656.66,3.565]
[1751243066867,0.26510044,656.95,656.67,3.242]
[1751243074272,3.80802929,657.84,656.67,3.242]
[1751243074567,0.26489965,657.16,656.67,3.242]
[1751243074773,3.80802929,658.38,656.67,3.242]
[1751243074968,3.80802929,657.95,656.67,3.242]
[1751243075167,0.26481499,657.34,656.67,3.242]
[1751243075369,3.80802929,657.95,656.67,3.242]
[1751243075568,0.2648422,657.38,656.67,3.242]
[1751243075773,3.80802929,657.99,656.67,3.242]
[1751243076072,0.26481801,657.39,656.67,3.242]
[1751243076269,3.80802929,658.18,656.67,3.242]
[1751243076472,3.80802929,658.04,656.67,3.242]
[1751243077073,3.80802929,658.09,656.67,3.242]
[1751243077274,3.80802929,658.16,656.67,3.242]
[1751243077574,0.26479383,657.74,656.67,3.242]
[1751243078471,0.26479383,657.74,656.68,1.16211199]
[1751243078672,0.26479383,657.74,656.69,1.16211199]
[1751243078869,0.26479383,657.74,656.7,1.16211199]
[1751243079074,0.26479383,657.74,656.71,1.16211199]
[1751243079274,0.26479383,657.74,656.72,1.16211199]
[1751243079471,0.26479383,657.74,656.73,1.16211199]
[1751243079675,0.26479383,657.74,656.74,1.16211199]
[1751243079875,0.26479383,657.74,656.75,1.16211199]
[1751243080073,0.26479383,657.74,656.76,1.16211199]
[1751243080276,0.26479383,657.74,656.77,1.16211199]
[1751243080472,0.26479383,657.74,656.78,1.16211199]
[1751243080671,0.26479383,657.74,656.79,1.16211199]
[1751243080872,0.26479383,657.74,656.8,1.16211199]
[1751243081175,0.26474448,657.51,656.81,1.16211199]
[1751243081472,0.26474448,657.51,656.82,1.16211199]
[1751243081675,0.26474448,657.51,656.83,1.16211199]
[1751243081877,0.26474448,657.51,656.84,1.16211199]
[1751243082071,0.26474448,657.51,656.85,1.16211199]
[1751243082275,0.26474448,657.51,656.79,4.033]
[1751243082276,0.26474448,657.51,656.86,1.16211199]
[1751243082572,0.26474448,657.51,656.87,1.16211199]
[1751243082872,0.26474448,657.51,656.88,1.16211199]
[1751243083175,0.26474448,657.51,656.89,1.16211199]
[1751243083375,0.26474448,657.51,656.9,1.16211199]
[1751243083671,0.26474448,657.51,656.91,1.16211199]
[1751243083875,0.26474448,657.51,656.92,1.16211199]
[1751243084075,0.26474448,657.51,656.93,1.16211199]
[1751243084378,3.80802929,658.72,656.94,1.16211199]
[1751243084576,0.26469011,657.51,656.95,1.16211199]
[1751243084776,3.80802929,658.87,656.96,1.16211199]
[1751243084976,0.26466595,657.54,656.97,1.16211199]
[1751243085272,3.80802929,658.81,656.98,1.16211199]
[1751243085476,0.26467199,657.54,656.99,1.16211199]
[1751243085776,3.80802929,658.71,657.0,1.16211199]
[1751243086072,0.26467199,657.52,657.01,5.07111199]
[1751243086276,3.80802929,658.6,657.02,1.16211199]
[1751243086472,3.80802929,658.6,657.03,1.16211199]
[1751243086677,3.80802929,658.4,657.04,1.16211199]
[1751243086878,3.80802929,658.4,657.01,3.909]
[1751243087078,3.80802929,658.39,657.02,1.15517237]
[1751243087275,3.80802929,658.39,657.03,1.15517237]
[1751243087478,0.26471125,658.05,657.04,1.15517237]
[1751243087775,0.26471125,658.05,657.05,1.15517237]
[1751243088078,0.26471125,658.05,657.01,3.909]
[1751243088275,0.26471125,658.05,657.02,1.1547749]
[1751243088476,0.26471125,658.05,657.03,1.1547749]
[1751243088779,0.26471125,658.05,657.01,3.909]
[1751243088982,0.26471125,658.05,657.02,1.15464664]
[1751243089179,0.26471125,658.05,657.01,3.909]
[1751243089479,0.26471125,658.05,657.02,1.15440945]
[1751243089675,0.26471125,658.05,657.01,3.909]
[1751243089880,0.26471125,658.05,657.03,0.887]
[1751243092783,0.26471125,658.05,657.04,3.404]
[1751243094486,0.26471125,658.05,657.05,3.576]
[1751243094787,0.26471125,658.05,657.06,1.15338422]
[1751243094987,0.26471125,658.05,657.07,1.15338422]
[1751243095185,0.26471125,658.05,657.08,1.15338422]
[1751243095390,0.26471125,658.05,657.09,1.15338422]
[1751243095589,0.26471125,658.05,657.1,1.15338422]
[1751243095789,0.26471125,658.05,657.11,1.15338422]
[1751243095991,0.26471125,658.05,657.12,1.15338422]
[1751243096187,0.26471125,658.05,657.13,1.15338422]
[1751243096389,0.26471125,658.05,657.14,1.15338422]
[1751243096587,0.26471125,658.05,657.15,1.15338422]
[1751243096790,0.26471125,658.05,657.16,1.15338422]
[1751243096987,0.26471125,658.05,657.17,1.15338422]
[1751243097190,0.26471125,658.05,657.05,3.576]
[1751243097391,0.26471125,658.05,657.06,1.15254811]
[1751243097592,0.26471125,658.05,657.07,1.15254811]
[1751243097795,0.26471125,658.05,657.08,1.15254811]
[1751243098093,0.26471125,658.05,657.09,1.15254811]
[1751243098394,0.26471125,658.05,657.1,1.15254811]
[1751243098693,0.26471125,658.05,657.11,1.15254811]
[1751243098895,0.26471125,658.05,657.12,1.15254811]
[1751243099092,0.26471125,658.05,657.23,1.13706249]
[1751243099290,0.26471125,658.05,657.25,1.13706249]
[1751243099491,0.26471125,658.05,657.26,1.15254811]
[1751243099697,0.26471125,658.05,657.31,1.13706249]
[1751243099894,0.26471125,658.05,657.32,1.15254811]
[1751243100090,0.26471125,658.05,657.33,1.15254811]
[1751243100290,0.26471125,658.05,657.34,1.15254811]
[1751243100494,0.26471125,658.05,657.35,1.15254811]
[1751243100690,0.26471125,658.05,657.36,1.15254811]
[1751243100895,0.26471125,658.05,657.37,1.15254811]
[1751243101093,0.26471125,658.05,657.38,1.15254811]
[1751243101296,0.26471125,658.05,657.39,1.15254811]
[1751243101497,0.26471125,658.05,657.4,1.15254811]
[1751243101696,0.26471125,658.05,657.41,1.15254811]
[1751243101897,0.26471125,658.05,657.42,1.15254811]
[1751243102097,0.26471125,658.05,657.43,1.15254811]
[1751243102398,0.26471125,658.05,657.44,1.15254811]
[1751243102594,0.26471125,658.05,657.45,1.15254811]
[1751243102795,0.26471125,658.05,657.46,1.15254811]
[1751243102995,0.26471125,658.05,657.47,1.15254811]
[1751243103197,0.26471125,658.05,657.48,1.15254811]
[1751243103495,0.26471125,658.05,657.49,1.15254811]
[1751243103692,0.26471125,658.05,657.5,1.15254811]
[1751243103896,0.26471125,658.05,657.51,1.15254811]
[1751243104196,0.26471125,658.05,657.52,1.15254811]
[1751243104392,0.26471125,658.05,657.53,1.15254811]
[1751243104596,0.26471125,658.05,657.54,1.15254811]
[1751243104796,0.26471125,658.05,657.55,1.15254811]
[1751243104997,0.26471125,658.05,657.56,1.15254811]
[1751243105296,0.26471125,658.05,657.57,1.15254811]
[1751243105594,0.26471125,658.05,657.58,1.19407329]
[1751243105897,0.26471125,658.05,657.59,1.19407329]
[1751243106095,0.26471125,658.05,657.6,1.19407329]
[1751243106293,0.26471125,658.05,657.61,1.19407329]
[1751243106497,0.26471125,658.05,657.45,1.517]
[1751243106698,0.26471125,658.05,657.46,1.19382911]
[1751243106896,0.26471125,658.05,657.47,1.19382911]
[1751243107099,0.26471125,658.05,657.48,1.19382911]
[1751243107296,0.26471125,658.05,657.45,1.517]
[1751243107297,0.26471125,658.05,657.49,1.19382911]
[1751243107599,0.26471125,658.05,657.5,1.19382911]
[1751243107800,0.26471125,658.05,657.51,1.19382911]
[1751243108100,0.26471125,658.05,657.52,1.19382911]
[1751243108399,0.26471125,658.05,657.53,1.19382911]
[1751243108595,0.26471125,658.05,657.54,1.19382911]
[1751243108794,0.26471125,658.05,657.55,1.19382911]
[1751243108994,0.26471125,658.05,657.56,1.19382911]
[1751243109196,0.26471125,658.05,657.57,1.19382911]
[1751243109396,0.26471125,658.05,657.58,1.19382911]
[1751243109700,0.26471125,658.05,657.45,1.517]
[1751243109701,0.26471125,658.05,657.59,1.19382911]
[1751243109901,0.26471125,658.05,657.6,1.19382911]
[1751243110198,0.26471125,658.05,657.45,1.517]
[1751243110199,0.26471125,658.05,657.61,1.19382911]
[1751243110401,0.26471125,658.05,657.62,1.19382911]
[1751243110602,0.26471125,658.05,657.45,1.517]
[1751243110897,0.26471125,658.05,657.46,1.19288499]
[1751243111096,0.26471125,658.05,657.47,1.19288499]
[1751243111297,0.26471125,658.05,657.48,1.19288499]
[1751243111497,0.26471125,658.05,657.45,1.517]
[1751243111498,0.26471125,658.05,657.49,1.19288499]
[1751243111696,0.26471125,658.05,657.5,1.19288499]
[1751243111897,0.26471125,658.05,657.51,1.19288499]
[1751243112097,0.26471125,658.05,657.52,1.19288499]
[1751243112401,0.26471125,658.05,657.53,1.19288499]
[1751243112598,0.26471125,658.05,657.54,1.19288499]
[1751243112899,0.26471125,658.05,657.55,1.19288499]
[1751243113098,0.26471125,658.05,657.56,1.19288499]
[1751243113299,0.26471125,658.05,657.57,1.19288499]
[1751243113500,0.26471125,658.05,657.58,1.19288499]
[1751243113699,0.26471125,658.05,657.59,1.19288499]
[1751243114000,0.26471125,658.05,657.6,1.19288499]
[1751243114199,0.26471125,658.05,657.61,1.19288499]
[1751243114402,0.26471125,658.05,657.62,1.19288499]
[1751243114602,0.26471125,658.05,657.63,1.19288499]
[1751243114798,0.26471125,658.05,657.55,3.801]
[1751243114998,0.26471125,658.05,657.56,1.1932658]
[1751243115201,0.26471125,658.05,657.57,1.1932658]
[1751243115401,0.26471125,658.05,657.58,1.1932658]
[1751243115606,0.26471125,658.05,657.59,1.1932658]
[1751243115808,0.26471125,658.05,657.6,1.1932658]
[1751243116107,0.26471125,658.05,657.61,1.1932658]
[1751243116402,0.26471125,658.05,657.62,1.1932658]
[1751243116706,0.26471125,658.05,657.63,1.1932658]
[1751243116907,0.26471125,658.05,657.55,3.801]
[1751243117202,0.26471125,658.05,657.56,1.19249287]
[1751243117402,0.26471125,658.05,657.57,1.19249287]
[1751243117602,0.26471125,658.05,657.58,1.19249287]
[1751243117806,0.26471125,658.05,657.55,3.801]
[1751243117807,0.26471125,658.05,657.59,1.19249287]
[1751243118007,0.26471125,658.05,657.6,1.19249287]
[1751243118304,0.26471125,658.05,657.55,3.801]
[1751243118508,0.26471125,658.05,657.56,1.17942642]
[1751243118709,0.26471125,658.05,657.57,1.17942642]
[1751243119007,0.26471125,658.05,657.58,1.17942642]
[1751243119206,0.26471125,658.05,657.59,1.17942642]
[1751243119406,0.26471125,658.05,657.59,0.886]
[1751243123313,0.26471125,658.05,657.6,2.518]
[1751243124814,0.26471125,658.05,657.61,3.187]
[1751243126614,0.26471125,658.05,657.62,3.619]
[1751243127113,0.26471125,658.05,657.63,2.961]
[1751243128516,0.26471125,658.05,657.64,3.473]
[1751243139124,0.26471125,658.05,657.65,2.929]
[1751243162144,0.26471125,658.05,657.66,3.151]
[1751243171558,0.26471125,658.05,657.67,2.879]
[1751243175959,0.26471125,658.05,657.68,4.025]
[1751243184961,0.26471125,658.05,657.69,2.698]
[1751243187365,0.26471125,658.05,657.7,3.318]
[1751243188369,0.26471125,658.05,657.7,1.41567298]
[1751243190867,0.26471125,658.05,657.7,0.31912205]
[1751243197572,0.26471125,658.05,657.71,2.792]
[1751243203985,0.26471125,658.05,657.6,1.517]
[1751243206087,0.26471125,658.05,656.63,1.13087355]
[1751243206386,0.26471125,658.05,657.3,4.69]
[1751243206684,0.26471125,658.05,657.31,1.236]
[1751243207088,0.26471125,658.05,657.32,3.474]
[1751243237813,3.80802929,657.83,657.32,3.474]
[1751243238318,3.80802929,657.81,657.32,3.474]
[1751243239918,3.80802929,657.77,657.32,3.474]
[1751243240416,3.80802929,657.78,657.32,3.474]
[1751243241022,0.26471125,658.05,657.32,3.474]
[1751243243617,3.80802929,657.93,657.32,3.474]
[1751243244225,3.80802929,657.89,657.32,3.474]
[1751243244621,3.80802929,657.88,657.32,3.474]
[1751243245225,3.80802929,657.84,657.32,3.474]
[1751243245725,3.80802929,657.83,657.32,3.474]
[1751243246120,3.80802929,657.81,657.32,3.474]
[1751243246320,3.80802929,657.81,657.24,1.235]
[1751243246825,3.80802929,657.83,657.24,1.235]
[1751243249227,3.80802929,657.78,657.24,1.235]
[1751243250028,3.80802929,657.78,657.05,2.967]
[1751243250429,3.80802929,657.75,657.05,2.967]
[1751243251129,3.80802929,657.95,657.05,2.967]
[1751243251529,3.80802929,657.97,657.05,2.967]
[1751243251924,3.80802929,658.0,657.05,2.967]
[1751243252530,3.80802929,657.94,657.05,2.967]
[1751243252726,3.80802929,657.94,657.03,2.815]
[1751243254529,3.80802929,657.97,657.03,2.815]
[1751243255531,3.80802929,657.99,657.03,2.815]
[1751243256733,3.80802929,658.02,657.03,2.815]
[1751243257633,3.80802929,658.03,657.03,2.815]
[1751243258235,0.26471125,658.05,656.8,2.023]
[1751243268549,3.80802929,657.96,656.8,2.023]
[1751243269646,3.80802929,658.02,656.8,2.023]
[1751243270146,0.26471125,658.05,656.8,2.023]
[1751243270647,0.26471125,658.05,656.7,3.302]
[1751243287763,0.26490772,657.72,656.7,3.302]
[1751243291461,0.26490772,657.72,656.7,5.71]
[1751243294766,0.26490772,657.72,656.7,6.806]
[1751243297464,0.26490772,657.72,656.71,2.469]
[1751243302266,0.26490772,657.72,656.72,3.497]
[1751243308376,4.07293701,657.72,656.72,3.497]
[1751243309677,3.80802929,657.7,656.72,3.497]
[1751243310078,3.80802929,657.64,656.72,3.497]
[1751243310478,3.80802929,657.64,656.73,3.183]
[1751243310678,3.80802929,657.63,656.73,3.183]
[1751243311080,3.80802929,657.62,656.73,3.183]
[1751243311580,3.80802929,657.61,656.74,3.538]
[1751243312081,0.26490772,657.72,656.74,3.538]
[1751243313778,0.26490772,657.72,656.75,2.022]
[1751243314383,0.26490772,657.72,656.76,2.476]
[1751243314779,3.80802929,657.7,656.76,2.476]
[1751243315178,3.80802929,657.69,656.76,2.476]
[1751243315883,3.80802929,657.7,656.76,2.476]
[1751243316782,0.26490772,657.72,656.76,2.476]
[1751243317682,0.26490772,657.72,656.77,3.248]
[1751243322689,0.26490772,657.72,656.78,1.096]
[1751243327587,0.26490772,657.72,656.79,3.904]
[1751243332593,3.80802929,657.57,656.79,3.904]
[1751243333602,3.80802929,657.54,656.79,3.904]
[1751243333999,3.80802929,657.55,656.79,3.904]
[1751243334602,3.80802929,657.54,656.79,3.904]
[1751243335299,3.80802929,657.55,656.79,3.904]
[1751243335702,3.80802929,657.53,656.79,3.904]
[1751243336700,3.80802929,657.52,656.79,3.904]
[1751243337205,3.80802929,657.47,656.79,3.904]
[1751243338208,3.80802929,657.43,656.79,3.904]
[1751243338809,3.80802929,657.46,656.79,3.904]
[1751243339409,3.80802929,657.45,656.79,3.904]
[1751243340310,3.80802929,657.48,656.79,3.904]
[1751243341306,3.80802929,657.46,656.79,3.904]
[1751243344011,3.80802929,657.45,656.79,3.904]
[1751243344614,3.80802929,657.44,656.79,3.904]
[1751243345014,3.80802929,657.43,656.79,3.904]
[1751243346611,3.80802929,657.35,656.79,3.904]
[1751243346814,3.80802929,657.35,656.78,1.096]
[1751243347614,3.80802929,657.32,656.78,1.096]
[1751243348114,3.80802929,657.32,656.79,3.523]
[1751243349610,3.80802929,657.32,656.8,3.46]
[1751243349910,3.80802929,657.31,656.8,3.46]
[1751243351017,3.80802929,657.3,656.8,3.46]
[1751243352018,3.80802929,657.46,656.8,3.46]
[1751243352313,3.80802929,657.38,656.8,3.46]
[1751243353617,3.80802929,657.35,656.8,3.46]
[1751243355516,3.80802929,657.36,656.8,3.46]
[1751243356217,3.80802929,657.41,656.8,3.46]
[1751243356619,3.80802929,657.31,656.8,3.46]
[1751243357618,3.80802929,657.32,656.8,3.46]
[1751243358118,3.80802929,657.31,656.8,3.46]
[1751243358621,3.80802929,657.32,656.8,3.46]
[1751243359718,3.80802929,657.35,656.8,3.46]
[1751243360223,3.80802929,657.36,656.8,3.46]
[1751243360822,3.80802929,657.37,656.8,3.46]
[1751243363927,3.80802929,657.35,656.8,3.46]
[1751243364930,3.80802929,657.34,656.8,3.46]
[1751243365428,3.80802929,657.35,656.8,3.46]
[1751243365924,3.80802929,657.3,656.8,3.46]
[1751243366428,3.80802929,657.31,656.8,3.46]
[1751243366630,3.80802929,657.31,656.73,3.621]
[1751243367525,3.80802929,657.37,656.73,3.621]
[1751243368128,3.80802929,657.34,656.73,3.621]
[1751243369729,3.80802929,657.3,656.73,3.621]
[1751243370229,3.80802929,657.33,656.73,3.621]
[1751243370726,3.80802929,657.32,656.73,3.621]
[1751243371728,3.80802929,657.33,656.73,3.621]
[1751243372329,3.80802929,657.31,656.73,3.621]
[1751243372728,3.80802929,657.48,656.73,3.621]
[1751243373730,3.80802929,657.49,656.74,2.472]
[1751243374228,3.80802929,657.51,656.74,2.472]
[1751243375835,3.80802929,657.5,656.74,2.472]
[1751243377533,3.80802929,657.48,656.74,2.472]
[1751243378933,3.80802929,657.47,656.74,2.472]
[1751243380035,3.80802929,657.46,656.74,2.472]
[1751243381841,0.26490772,657.72,656.74,2.472]
[1751243381842,3.80802929,657.51,656.74,2.472]
[1751243382345,3.80802929,657.4,656.74,2.472]
[1751243383245,3.80802929,657.38,656.74,2.472]
[1751243383946,3.80802929,657.35,656.74,2.472]
[1751243385949,3.80802929,657.41,656.74,2.472]
[1751243387046,3.80802929,657.42,656.74,2.472]
[1751243388150,3.80802929,657.41,656.74,2.472]
[1751243389659,3.80802929,657.4,656.74,2.472]
[1751243391360,3.80802929,657.33,656.74,2.472]
[1751243392560,3.80802929,657.32,656.74,2.472]
[1751243395061,3.80802929,657.33,656.74,2.472]
[1751243395558,3.80802929,657.29,656.74,2.472]
[1751243396059,3.80802929,657.25,656.74,2.472]
[1751243396565,3.80802929,657.29,656.74,2.472]
[1751243396864,3.80802929,657.29,656.73,3.621]
[1751243397265,3.80802929,657.26,656.73,3.621]
[1751243397765,3.80802929,657.31,656.73,3.621]
[1751243398262,3.80802929,657.31,656.12,1.12430022]
[1751243398465,3.80802929,657.31,656.13,1.69732493]
[1751243398664,3.80802929,657.31,656.14,1.69732493]
[1751243398964,3.80802929,657.31,656.15,1.69732493]
[1751243399165,3.80802929,657.31,656.16,1.15942526]
[1751243399364,3.80802929,657.33,656.17,1.15942526]
[1751243399560,3.80802929,657.33,656.18,3.95742526]
[1751243399763,3.80802929,657.33,656.19,1.15942526]
[1751243399962,3.80802929,657.33,656.2,1.15942526]
[1751243400160,3.80802929,657.33,656.18,2.798]
[1751243400364,3.80802929,657.17,656.21,2.934]
[1751243400865,3.80802929,657.09,656.22,4.885]
[1751243401165,3.80802929,657.09,656.22,5.982]
[1751243401465,3.80802929,657.13,656.22,5.982]
[1751243401962,3.80802929,657.14,656.23,3.809]
[1751243402662,0.26490772,657.72,656.23,3.809]
[1751243402663,3.80802929,657.15,656.23,3.809]
[1751243403564,3.80802929,657.14,656.24,2.498]
[1751243404162,3.80802929,657.25,656.24,2.498]
[1751243404665,3.80802929,657.26,656.24,2.498]
[1751243404865,3.80802929,657.26,656.25,2.921]
[1751243405059,3.80802929,657.27,656.25,2.921]
[1751243405666,3.80802929,657.32,656.25,2.921]
[1751243406165,3.80802929,657.52,656.25,2.921]
[1751243407768,3.80802929,657.65,656.26,1.15847403]
[1751243407965,3.80802929,657.65,656.27,1.15847403]